bitfinex/quotes_BTCUSD_20220115
["timestamp","ask_amount","ask_price","bid_price","bid_amount"]
[1642248890681,0.74248545,43011.0,43005.0,0.058122]
[1642248890883,0.19492119,43010.0,43005.0,0.058122]
[1642248891279,0.20104898,43010.0,43005.0,0.058122]
[1642248891480,0.74248545,43011.0,43005.0,0.058122]
[1642248891680,0.74248545,43011.0,43005.0,0.0579444]
[1642248894554,0.19294664,43010.0,43005.0,0.0579444]
[1642248894855,0.19294664,43010.0,43005.0,0.0131444]
[1642248895460,0.19294664,43010.0,43003.0,0.81177513]
[1642248895856,0.74248545,43011.0,43005.0,0.23]
[1642248896056,0.20295717,43010.0,43005.0,0.23]
[1642248897502,0.80061245,43011.0,43005.0,0.23]
[1642248897706,0.19213177,43010.0,43005.0,0.23]
[1642248899104,0.74248545,43011.0,43005.0,0.288122]
[1642248899305,0.74248545,43011.0,43005.0,0.88471331]
[1642248899933,0.74248545,43011.0,43005.0,0.83961331]
[1642248900251,0.74248545,43011.0,43008.0,0.058117]
[1642248900440,0.74248545,43011.0,43006.0,0.59659131]
[1642248901235,0.31743891,43011.0,43006.0,0.59659131]
[1642248901438,0.31743891,43011.0,43007.0,0.058119]
[1642248902037,0.31743891,43011.0,43006.0,0.59659131]
[1642248902942,0.31743891,43011.0,43006.0,0.65471231]
[1642248904786,0.31743891,43011.0,43006.0,0.61001231]
[1642248907527,0.31743891,43011.0,43006.0,0.058121]
[1642248909229,0.0197352,43008.0,43006.0,0.058121]
[1642248909430,0.0394704,43008.0,43006.0,0.058121]
[1642248909829,0.0394704,43008.0,43006.0,0.013421]
[1642248913080,0.0394704,43008.0,43005.0,0.88043913]
[1642248914382,0.31743891,43011.0,43006.0,0.05812]
[1642248914583,0.31743891,43011.0,43005.0,0.88043913]
[1642248914783,0.0197352,43008.0,43005.0,0.88043913]
[1642248915055,0.0197352,43008.0,43005.0,0.83573913]
[1642248917459,0.0197352,43008.0,43007.0,0.59668565]
[1642248919698,0.0394704,43008.0,43007.0,0.59668565]
[1642248919899,0.0394704,43008.0,43007.0,0.55198565]
[1642248925039,0.0394704,43008.0,43007.0,0.50698565]
[1642248926899,0.28740683,43011.0,43007.0,0.50698565]
[1642248928098,0.47192344,43011.0,43007.0,0.50698565]
[1642248928297,0.28740683,43011.0,43007.0,0.50698565]
[1642248928699,0.28740683,43011.0,43008.0,0.058118]
[1642248928998,0.28740683,43011.0,43007.0,0.50698565]
[1642248930034,0.28740683,43011.0,43007.0,0.46218565]
[1642248930638,0.376133,43010.0,43007.0,0.46218565]
[1642248930837,0.21997311,43009.0,43007.0,0.46218565]
[1642248931036,0.21997311,43009.0,43005.0,0.1402]
[1642248934985,0.21997311,43009.0,43005.0,0.095]
[1642248935387,0.39531504,43006.0,43005.0,0.095]
[1642248939849,0.59063232,43006.0,43005.0,0.095]
[1642248940043,2.61676532,43006.0,43005.0,0.0502]
[1642248941686,0.96676532,43006.0,43005.0,0.0502]
[1642248942689,1.81676532,43006.0,43005.0,0.0502]
[1642248943889,0.96676532,43006.0,43005.0,0.0502]
[1642248944691,1.41676532,43006.0,43005.0,0.0502]
[1642248945139,1.41676532,43006.0,43005.0,0.0052]
[1642248945537,1.86676532,43006.0,43005.0,0.0052]
[1642248945738,1.41676532,43006.0,43005.0,0.0052]
[1642248946739,1.04063232,43006.0,43005.0,0.0052]
[1642248947141,1.41676532,43006.0,43005.0,0.0052]
[1642248947544,1.81676532,43006.0,43005.0,0.0052]
[1642248947745,0.30352948,42997.0,42996.0,0.116256]
[1642248949686,0.30352948,42997.0,42996.0,0.20019537]
[1642248950086,0.30352948,42997.0,42996.0,0.15549537]
[1642248955249,0.30352948,42997.0,42996.0,0.11079537]
[1642248957494,0.30352948,42997.0,42996.0,0.026856]
[1642248957894,0.30352948,42997.0,42996.0,0.196856]
[1642248960138,0.30352948,42997.0,42996.0,0.151956]
[1642248960939,0.30352948,42997.0,42996.0,0.268212]
[1642248965190,0.30352948,42997.0,42996.0,0.223212]
[1642248966991,0.10604089,43010.0,42996.0,0.223212]
[1642248967192,1.00285631,43011.0,42997.0,0.18332056]
[1642248967449,1.00285631,43011.0,43002.0,0.116235]
[1642248967450,0.69208107,43011.0,43002.0,0.116235]
[1642248967650,0.59184609,43012.0,43003.0,0.20338659]
[1642248967847,0.52209195,43012.0,43004.0,0.00120529]
[1642248968049,0.79658847,43012.0,43004.0,0.00120529]
[1642248968248,0.29159643,43010.0,43004.0,0.00120529]
[1642248968650,0.29159643,43010.0,43004.0,0.09988672]
[1642248968850,0.29159643,43010.0,43008.0,0.058115]
[1642248969049,0.29159643,43010.0,43008.0,0.055595]
[1642248970256,0.29159643,43010.0,43008.0,0.010995]
[1642248973593,0.29159643,43010.0,43008.0,0.00844482]
[1642248975241,0.29159643,43010.0,43006.0,0.07997382]
[1642248976346,0.29159643,43010.0,43006.0,0.77621031]
[1642248977043,0.29159643,43010.0,43008.0,0.59671433]
[1642248978144,0.18155179,43009.0,43008.0,0.59671433]
[1642248978795,0.18155179,43009.0,43006.0,0.78668815]
[1642248979002,0.29159643,43010.0,43006.0,0.78668815]
[1642248980294,0.29159643,43010.0,43006.0,0.74178815]
[1642248983140,0.29159643,43010.0,43007.0,0.59671433]
[1642248983539,0.29159643,43010.0,43006.0,0.74178815]
[1642248983942,0.29159643,43010.0,43006.0,0.70671433]
[1642248985341,0.29159643,43010.0,43006.0,0.66201433]
[1642248985541,0.29159643,43010.0,43006.0,0.72013533]
[1642248985941,0.40835722,43009.0,43006.0,0.72013533]
[1642248986591,0.29159643,43010.0,43006.0,0.72013533]
[1642248986794,0.29159643,43010.0,43006.0,0.123421]
[1642248987891,0.63754392,43010.0,43006.0,0.123421]
[1642248988092,0.63754392,43010.0,43006.0,0.72013533]
[1642248988292,0.63754392,43010.0,43006.0,0.65483533]
[1642248990538,0.63754392,43010.0,43006.0,0.60933533]
[1642248991844,0.63754392,43010.0,43006.0,0.59671433]
[1642248995487,0.63754392,43010.0,43006.0,0.55211433]
[1642248997440,0.63754392,43010.0,43004.0,0.69623649]
[1642248997841,0.63754392,43010.0,43003.0,0.81247549]
[1642248998042,0.63754392,43010.0,43004.0,0.06]
[1642249000045,0.69567292,43010.0,43004.0,0.06]
[1642249000447,0.69567292,43010.0,43004.0,0.0152]
[1642249005044,0.69567292,43010.0,43005.0,0.59677508]
[1642249005244,0.63754392,43010.0,43005.0,0.59677508]
[1642249005443,0.63754392,43010.0,43005.0,0.55217508]
[1642249006047,0.63754392,43010.0,43004.0,0.0152]
[1642249006445,0.63754392,43010.0,43006.0,0.05812]
[1642249006645,0.29159643,43010.0,43006.0,0.05812]
[1642249010487,0.29159643,43010.0,43006.0,0.01312]
[1642249010787,0.29159643,43010.0,43006.0,0.01126]
[1642249012290,0.46614219,43010.0,43004.0,0.116236]
[1642249012546,0.29159643,43010.0,43004.0,0.116236]
[1642249015552,0.29159643,43010.0,43004.0,0.071536]
[1642249018996,0.29159643,43010.0,43004.0,0.091536]
[1642249019200,0.29159643,43010.0,43006.0,0.55217508]
[1642249019397,0.29159643,43010.0,43008.0,0.058117]
[1642249020240,0.29159643,43010.0,43006.0,0.55217508]
[1642249020439,0.24546719,43008.0,43006.0,0.55217508]
[1642249020641,0.24546719,43008.0,43006.0,0.50747508]
[1642249021240,0.29159643,43010.0,43006.0,0.56559508]
[1642249023443,0.29159643,43010.0,43006.0,0.05812]
[1642249025490,0.29159643,43010.0,43006.0,0.01352]
[1642249028742,0.28659643,43010.0,43007.0,0.5967302]
[1642249029144,0.28659643,43010.0,43008.0,0.058116]
[1642249030644,0.28659643,43010.0,43008.0,0.013516]
[1642249033596,0.31580119,43012.0,43008.0,0.013516]
[1642249034696,0.6340122,43012.0,43008.0,0.013516]
[1642249035543,0.6340122,43012.0,43007.0,0.5654462]
[1642249035941,0.17587232,43011.0,43007.0,0.5654462]
[1642249036343,0.17587232,43011.0,43007.0,0.6235652]
[1642249036940,0.6340122,43012.0,43007.0,0.6235652]
[1642249037742,0.6340122,43012.0,43007.0,0.5654462]
[1642249037743,0.17331118,43011.0,43007.0,0.5654462]
[1642249038795,0.17331118,43011.0,43005.0,0.116232]
[1642249038997,0.17249487,43011.0,43005.0,0.116232]
[1642249040595,0.17249487,43011.0,43005.0,0.071232]
[1642249040999,0.17447626,43011.0,43005.0,0.071232]
[1642249041198,0.6340122,43012.0,43005.0,0.071232]
[1642249043244,0.17433699,43011.0,43005.0,0.071232]
[1642249044147,0.17433699,43011.0,43004.0,0.02]
[1642249044544,0.17433699,43011.0,43005.0,0.59656607]
[1642249045646,0.6340122,43012.0,43005.0,0.55176607]
[1642249045846,0.80460792,43012.0,43006.0,0.058119]
[1642249046290,0.83160792,43012.0,43005.0,0.55176607]
[1642249046696,0.6610122,43012.0,43005.0,0.55176607]
[1642249047490,0.17031299,43011.0,43005.0,0.55176607]
[1642249047690,0.6610122,43012.0,43005.0,0.55176607]
[1642249048091,0.6340122,43012.0,43005.0,0.55176607]
[1642249048291,0.6630122,43012.0,43005.0,0.55176607]
[1642249049092,0.6630122,43012.0,43006.0,0.058119]
[1642249049492,0.6340122,43012.0,43008.0,1.92602952]
[1642249049791,0.32425146,43012.0,43006.0,0.116226]
[1642249050248,0.36125146,43012.0,43006.0,0.116226]
[1642249050649,0.28109451,43010.0,43006.0,0.071626]
[1642249053054,0.28109451,43010.0,43005.0,0.69623649]
[1642249053254,0.28109451,43010.0,43005.0,0.75435849]
[1642249054291,0.28109451,43010.0,43007.0,0.5967229]
[1642249055792,0.28109451,43010.0,43007.0,0.5520229]
[1642249058649,0.28109451,43010.0,43005.0,0.91615461]
[1642249059047,0.28109451,43010.0,43004.0,0.77435849]
[1642249060747,0.28109451,43010.0,43004.0,0.72935849]
[1642249062419,0.28109451,43010.0,43005.0,0.92010497]
[1642249062918,0.28109451,43010.0,43006.0,0.058119]
[1642249063116,0.32425146,43012.0,43006.0,0.058119]
[1642249063715,0.32425146,43012.0,43006.0,0.75435549]
[1642249064415,0.29411733,43011.0,43006.0,0.75435549]
[1642249064616,0.29411733,43011.0,43008.0,0.59671574]
[1642249064816,0.29411733,43011.0,43009.0,0.058116]
[1642249065047,0.32425146,43012.0,43009.0,0.058116]
[1642249065847,0.32425146,43012.0,43009.0,0.013416]
[1642249066748,0.32425146,43012.0,43008.0,0.59671574]
[1642249070800,0.32425146,43012.0,43008.0,0.55211574]
[1642249072199,0.31821101,43012.0,43008.0,0.55211574]
[1642249072469,0.31821101,43012.0,43010.0,0.058115]
[1642249074573,0.28945039,43014.0,43010.0,0.23009039]
[1642249074773,0.31358213,43015.0,43010.0,0.058115]
[1642249075873,0.31358213,43015.0,43010.0,0.012915]
[1642249076192,0.31358213,43015.0,43007.0,0.51184507]
[1642249076594,0.058121,43014.0,43007.0,0.51184507]
[1642249076793,0.32739286,43011.0,43007.0,0.51184507]
[1642249078396,0.32739286,43011.0,43007.0,0.51884507]
[1642249078796,0.32739286,43011.0,43008.0,0.058116]
[1642249079397,0.32739286,43011.0,43008.0,0.65456561]
[1642249080553,0.32739286,43011.0,43008.0,0.66056561]
[1642249080851,0.31358213,43015.0,43008.0,0.61586561]
[1642249081655,0.31358213,43015.0,43008.0,0.60986561]
[1642249082454,0.24385442,43014.0,43008.0,0.60986561]
[1642249084116,0.24385442,43014.0,43010.0,0.59644961]
[1642249084517,0.24385442,43014.0,43010.0,0.65456361]
[1642249084717,0.24385442,43014.0,43011.0,2.07038476]
[1642249085017,0.24385442,43014.0,43010.0,0.65456361]
[1642249086017,0.24385442,43014.0,43010.0,0.55104961]
[1642249087846,0.24385442,43014.0,43010.0,0.60916361]
[1642249088545,0.24385442,43014.0,43010.0,0.55104961]
[1642249089346,0.24385442,43014.0,43010.0,0.60916361]
[1642249091048,0.24385442,43014.0,43010.0,0.56426361]
[1642249092491,0.31358213,43015.0,43010.0,0.56426361]
[1642249096074,0.31358213,43015.0,43010.0,0.51956361]
[1642249096682,0.19803864,43014.0,43010.0,0.46144961]
[1642249097373,0.19803864,43014.0,43009.0,0.69623649]
[1642249097573,0.19803864,43014.0,43006.0,0.84141485]
[1642249097773,0.27828166,43011.0,43006.0,0.84141485]
[1642249098172,0.16507274,43010.0,43006.0,0.84141485]
[1642249098374,0.27828166,43011.0,43006.0,0.84141485]
[1642249098575,0.27828166,43011.0,43006.0,0.67123649]
[1642249098797,0.27828166,43011.0,43005.0,1.11341381]
[1642249099400,0.025,43014.0,43005.0,1.11341381]
[1642249099601,0.31358213,43015.0,43005.0,1.11341381]
[1642249099800,0.16808811,43014.0,43005.0,1.11341381]
[1642249100301,0.31358213,43015.0,43006.0,0.19101454]
[1642249100502,0.27219171,43014.0,43008.0,0.058117]
[1642249100803,0.25543224,43014.0,43008.0,0.058117]
[1642249101002,0.25543224,43014.0,43008.0,0.013417]
[1642249102453,0.18876861,43013.0,43003.0,0.116233]
[1642249103055,0.18876861,43013.0,43004.0,0.12617731]
[1642249103658,0.18876861,43013.0,43005.0,0.378155]
[1642249104857,0.18876861,43013.0,43005.0,0.97490254]
[1642249105460,0.08876861,43013.0,43005.0,0.97490254]
[1642249105758,0.08876861,43013.0,43005.0,1.03302354]
[1642249105958,0.08876861,43013.0,43005.0,0.98832354]
[1642249106422,0.08876861,43013.0,43005.0,0.98047451]
[1642249106617,0.26779484,43007.0,43005.0,0.98047451]
[1642249106818,0.26779484,43007.0,43005.0,0.65486854]
[1642249109118,0.21376861,43013.0,43005.0,0.058121]
[1642249109519,0.11376861,43013.0,43005.0,0.058121]
[1642249109719,0.08876861,43013.0,43005.0,0.058121]
[1642249109950,0.280777,43009.0,43005.0,0.058121]
[1642249111153,0.280777,43009.0,43005.0,0.013421]
[1642249116004,0.280777,43009.0,43004.0,0.36124691]
[1642249116808,0.280777,43009.0,43005.0,0.058121]
[1642249117106,0.280777,43009.0,43005.0,2.26536034]
[1642249117471,0.280777,43009.0,43005.0,0.058121]
[1642249117877,0.280777,43009.0,43003.0,0.81243944]
[1642249121200,0.280777,43009.0,43003.0,0.76743944]
[1642249121400,0.16257777,43008.0,43003.0,0.76743944]
[1642249121600,0.380777,43009.0,43003.0,0.76743944]
[1642249121801,0.280777,43009.0,43003.0,0.76743944]
[1642249122004,0.380777,43009.0,43003.0,0.071233]
[1642249122602,0.380777,43009.0,43004.0,0.59675412]
[1642249122804,0.380777,43009.0,43005.0,0.058121]
[1642249123004,0.280777,43009.0,43005.0,0.058121]
[1642249123202,0.380777,43009.0,43005.0,0.058121]
[1642249124203,0.280777,43009.0,43005.0,0.65487512]
[1642249124403,0.380777,43009.0,43005.0,0.65487512]
[1642249125551,0.280777,43009.0,43005.0,0.65487512]
[1642249126248,0.280777,43009.0,43005.0,0.60997512]
[1642249126452,0.280777,43009.0,43005.0,0.59675412]
[1642249127050,0.32188747,43011.0,43005.0,0.65487512]
[1642249127255,0.042,43011.0,43005.0,0.65487512]
[1642249127553,0.142,43011.0,43005.0,0.65487512]
[1642249127752,0.1,43011.0,43005.0,0.65487512]
[1642249127952,0.16266912,43010.0,43006.0,0.59675412]
[1642249128151,0.32910989,43009.0,43006.0,0.59675412]
[1642249128352,0.32910989,43009.0,43006.0,0.58935977]
[1642249128551,0.42910989,43009.0,43005.0,0.64748077]
[1642249130707,0.47210989,43009.0,43005.0,0.64748077]
[1642249131307,0.143,43009.0,43005.0,0.60288077]
[1642249131706,0.043,43009.0,43005.0,0.60288077]
[1642249131907,0.16277422,43013.0,43005.0,0.60288077]
[1642249132554,0.16277422,43013.0,43007.0,0.30678144]
[1642249132950,0.16277422,43013.0,43007.0,0.36489944]
[1642249133251,0.16277422,43013.0,43007.0,0.30678144]
[1642249134451,0.16277422,43013.0,43005.0,0.058121]
[1642249136201,0.16277422,43013.0,43006.0,0.24869847]
[1642249136603,0.16277422,43013.0,43006.0,0.84543922]
[1642249139107,0.16277422,43013.0,43006.0,0.24869847]
[1642249141055,0.16027422,43013.0,43006.0,0.24869847]
[1642249141254,0.16027422,43013.0,43006.0,0.20399847]
[1642249141453,0.376133,43012.0,43006.0,0.20399847]
[1642249141655,0.476133,43012.0,43006.0,0.20399847]
[1642249142554,0.511133,43012.0,43006.0,0.20399847]
[1642249144002,0.476133,43012.0,43006.0,0.20399847]
[1642249144604,0.512133,43012.0,43006.0,0.20399847]
[1642249145801,0.476133,43012.0,43006.0,0.20399847]
[1642249146201,0.476133,43012.0,43006.0,0.15919847]
[1642249146406,0.476133,43012.0,43005.0,0.013521]
[1642249146602,0.512133,43012.0,43005.0,0.013521]
[1642249146803,0.058124,43011.0,43003.0,0.75433044]
[1642249147003,0.4076709,43009.0,43003.0,0.75433044]
[1642249147652,0.5076709,43009.0,43003.0,0.75433044]
[1642249147853,0.33912352,43008.0,43003.0,0.75433044]
[1642249148056,0.43912352,43008.0,43003.0,0.75433044]
[1642249149455,0.59911706,43008.0,43003.0,0.75433044]
[1642249149653,0.59911706,43008.0,43003.0,0.058124]
[1642249149854,0.16168122,43007.0,43002.0,0.69620644]
[1642249150054,0.16102122,43007.0,43002.0,0.69620644]
[1642249150453,0.16102122,43007.0,43002.0,0.75433144]
[1642249150855,0.60002958,43008.0,43002.0,0.058125]
[1642249151301,0.60002958,43008.0,43002.0,0.013525]
[1642249152198,0.43912352,43008.0,43002.0,0.013525]
[1642249154202,0.59910183,43008.0,43002.0,0.013525]
[1642249154402,0.59910183,43008.0,43001.0,0.69620644]
[1642249154802,0.43912352,43008.0,43001.0,0.69620644]
[1642249155858,0.43912352,43008.0,43001.0,0.7459285]
[1642249156058,0.43912352,43008.0,43002.0,0.058125]
[1642249156255,0.5994336,43008.0,43002.0,0.013025]
[1642249159301,0.5994336,43008.0,43002.0,0.70923144]
[1642249159502,0.5994336,43008.0,43004.0,0.59669574]
[1642249161005,0.59747048,43008.0,43004.0,0.59669574]
[1642249161203,0.59747048,43008.0,43004.0,0.55199574]
[1642249161405,0.4371604,43008.0,43004.0,0.55199574]
[1642249161704,0.59765851,43008.0,43004.0,0.55199574]
[1642249164254,0.59765851,43008.0,43001.0,0.69620644]
[1642249164954,0.59765851,43008.0,43001.0,0.90379898]
[1642249165554,0.59765851,43008.0,43001.0,0.69620644]
[1642249166403,0.59765851,43008.0,43001.0,0.70953244]
[1642249166604,0.59765851,43008.0,43004.0,2.35820907]
[1642249168006,0.59765851,43008.0,43001.0,0.65140644]
[1642249168406,0.4371604,43008.0,43001.0,0.65140644]
[1642249169607,0.4371604,43008.0,43001.0,0.70953244]
[1642249171457,0.4371604,43008.0,43001.0,0.66473244]
[1642249171656,0.59572491,43008.0,43001.0,0.66473244]
[1642249171856,0.4371604,43008.0,43001.0,0.66473244]
[1642249173558,0.4371604,43008.0,43005.0,2.08175461]
[1642249173805,0.59832048,43008.0,43005.0,2.08175461]
[1642249174007,0.59832048,43008.0,43001.0,0.058126]
[1642249174203,0.4371604,43008.0,43001.0,0.058126]
[1642249176308,0.59551942,43008.0,43001.0,0.013326]
[1642249176512,0.4371604,43008.0,42999.0,0.11745428]
[1642249177109,0.4371604,43008.0,43001.0,0.058126]
[1642249179255,0.4371604,43008.0,43002.0,0.74545171]
[1642249180053,0.16864599,43007.0,43002.0,0.74545171]
[1642249180653,0.4371604,43008.0,43002.0,0.74545171]
[1642249180853,0.4371604,43008.0,43002.0,0.69558733]
[1642249181054,0.4371604,43008.0,43001.0,0.058126]
[1642249181055,0.4371604,43008.0,43001.0,0.75371333]
[1642249181501,0.4371604,43008.0,43001.0,0.70871333]
[1642249181901,0.4371604,43008.0,43002.0,0.74918106]
[1642249182302,0.16121318,43007.0,43002.0,0.74918106]
[1642249182701,0.16121318,43007.0,43003.0,0.69558733]
[1642249183301,0.16121318,43007.0,43001.0,0.70871333]
[1642249184206,0.43654347,43008.0,43001.0,0.70871333]
[1642249184804,0.1,43008.0,43005.0,0.59614338]
[1642249185059,0.036,43012.0,43006.0,0.05812]
[1642249185259,0.16410856,43011.0,43006.0,0.05812]
[1642249185659,0.50184305,43011.0,43006.0,0.05812]
[1642249186059,0.60184305,43011.0,43006.0,0.05812]
[1642249186460,0.60184305,43011.0,43006.0,0.01352]
[1642249187761,0.43773449,43011.0,43006.0,0.01352]
[1642249188906,0.1,43011.0,43006.0,0.01352]
[1642249189104,0.036,43012.0,43006.0,0.01352]
[1642249189303,0.1579601,43011.0,43006.0,0.01352]
[1642249189507,0.036,43012.0,43006.0,0.01352]
[1642249190103,0.036,43012.0,43009.0,0.35733332]
[1642249190308,0.036,43012.0,43010.0,0.17687384]
[1642249190702,0.036,43012.0,43009.0,0.02328]
[1642249191504,0.036,43012.0,43008.0,0.04183]
[1642249191702,0.036,43012.0,43010.0,0.058114]
[1642249191903,0.036,43012.0,43010.0,0.65425738]
[1642249192458,0.036,43012.0,43011.0,0.17256456]
[1642249195766,0.036,43012.0,43010.0,0.058114]
[1642249196208,0.036,43012.0,43009.0,0.59614338]
[1642249196407,0.036,43012.0,43009.0,0.013115]
[1642249197611,0.32272449,43011.0,43007.0,0.71361465]
[1642249198011,0.036,43012.0,43007.0,0.71361465]
[1642249199211,0.036,43012.0,43008.0,0.59614338]
[1642249199412,0.036,43012.0,43010.0,0.058114]
[1642249201559,0.036,43012.0,43010.0,0.013314]
[1642249203707,0.036,43012.0,43008.0,0.59614338]
[1642249204305,0.036,43012.0,43009.0,0.59614338]
[1642249204504,0.036,43012.0,43009.0,0.65425838]
[1642249205805,0.036,43012.0,43010.0,0.59614338]
[1642249206006,0.036,43012.0,43011.0,0.15813308]
[1642249206605,0.036,43012.0,43010.0,0.59614338]
[1642249207105,0.01753,43012.0,43011.0,0.59614338]
[1642249207305,0.00695,43012.0,43011.0,0.59614338]
[1642249208363,0.00695,43012.0,43010.0,0.59614338]
[1642249210662,0.36479162,43017.0,43010.0,0.59614338]
[1642249210865,0.43254347,43018.0,43011.0,0.34282746]
[1642249211064,0.53254347,43018.0,43011.0,0.40093946]
[1642249211309,0.37887968,43018.0,43012.0,0.15420935]
[1642249211510,0.59673926,43019.0,43011.0,0.457871]
[1642249211811,0.59673926,43019.0,43013.0,0.01514728]
[1642249211812,0.00308002,43016.0,43013.0,0.01514728]
[1642249212009,0.00308002,43016.0,43014.0,1.91036434]
[1642249212608,0.00308002,43016.0,43015.0,1.02241279]
[1642249212812,0.00256002,43016.0,43015.0,1.08959279]
[1642249213108,0.00256002,43016.0,43015.0,0.38959279]
[1642249213510,0.0005351,43020.0,43016.0,2.06290819]
[1642249213713,0.59673926,43025.0,43019.0,0.02746641]
[1642249213911,0.00783926,43026.0,43024.0,0.03318028]
[1642249214111,0.00783926,43026.0,43024.0,0.16257167]
[1642249214313,0.00783926,43026.0,43025.0,0.0012719]
[1642249214512,0.00783926,43026.0,43025.0,2.03967682]
[1642249214711,0.69617998,43028.0,43025.0,2.44819686]
[1642249214957,0.05,43034.0,43027.0,1.85124712]
[1642249215162,0.05,43034.0,43033.0,0.00123829]
[1642249215462,0.05,43034.0,43033.0,1.03630829]
[1642249215858,0.05,43034.0,43033.0,0.35090121]
[1642249216156,0.05,43034.0,43033.0,1.03120873]
[1642249216556,0.05,43034.0,43033.0,0.98660873]
[1642249216758,0.05,43034.0,43033.0,0.36437421]
[1642249216957,0.05,43034.0,43033.0,0.09978129]
[1642249217158,0.05,43034.0,43033.0,0.058073]
[1642249217358,0.05,43034.0,43030.0,0.058087]
[1642249217558,0.05042182,43034.0,43030.0,0.058087]
[1642249217756,0.05042182,43034.0,43028.0,0.116167]
[1642249218157,0.36407178,43032.0,43028.0,0.116167]
[1642249218357,0.36407178,43032.0,43029.0,0.6972]
[1642249218816,0.36407178,43032.0,43030.0,0.058087]
[1642249219016,0.36407178,43032.0,43029.0,0.6972]
[1642249219818,0.36407178,43032.0,43030.0,0.058087]
[1642249220417,0.36407178,43032.0,43029.0,0.6972]
[1642249221620,0.36407178,43032.0,43030.0,0.013486]
[1642249222676,0.36407178,43032.0,43029.0,0.6972]
[1642249222877,0.36407178,43032.0,43030.0,0.058087]
[1642249223677,0.05075555,43034.0,43030.0,0.058087]
[1642249224378,0.05075555,43034.0,43030.0,0.123557]
[1642249225580,0.05075555,43034.0,43030.0,0.058087]
[1642249226607,0.05075555,43034.0,43030.0,0.013287]
[1642249227406,0.0004215,43033.0,43030.0,0.013287]
[1642249231664,0.0004215,43033.0,43031.0,0.05807586]
[1642249231863,0.0004215,43033.0,43029.0,0.665787]
[1642249232465,0.05075555,43034.0,43029.0,0.665787]
[1642249232666,0.05075555,43034.0,43030.0,0.058087]
[1642249236707,0.05075555,43034.0,43030.0,0.013287]
[1642249237561,0.0004215,43033.0,43030.0,0.013287]
[1642249241716,0.0004215,43033.0,43029.0,0.634374]
[1642249242416,0.05075555,43034.0,43029.0,0.634374]
[1642249242616,0.05075555,43034.0,43030.0,0.058087]
[1642249243416,0.05075555,43034.0,43031.0,0.16719954]
[1642249243618,0.05075555,43034.0,43032.0,0.058079]
[1642249245559,0.05075555,43034.0,43029.0,1.32644131]
[1642249245560,0.05075555,43034.0,43029.0,1.22757455]
[1642249246761,0.05075555,43034.0,43032.0,0.058084]
[1642249247363,0.0004215,43033.0,43032.0,0.058084]
[1642249251315,0.0004215,43033.0,43032.0,0.39806122]
[1642249251718,0.0004215,43033.0,43032.0,0.35346122]
[1642249252318,0.0004215,43033.0,43032.0,1.31648979]
[1642249252568,0.0004215,43033.0,43032.0,1.15815122]
[1642249253564,0.0004215,43033.0,43032.0,1.25815122]
[1642249253762,0.0004215,43033.0,43032.0,1.60739311]
[1642249254164,0.0004215,43033.0,43032.0,3.29344418]
[1642249255163,0.0004215,43033.0,43032.0,2.60137687]
[1642249256809,0.0004215,43033.0,43032.0,2.55647687]
[1642249257710,0.0004215,43033.0,43032.0,2.61456087]
[1642249258109,0.0004215,43033.0,43032.0,2.51456087]
[1642249259310,0.0004215,43033.0,43032.0,1.52057711]
[1642249259712,0.00838943,43034.0,43033.0,1.75]
[1642249259963,0.25763935,43047.0,43040.0,0.36344226]
[1642249260761,0.31360733,43045.0,43040.0,0.36344226]
[1642249261163,0.25763935,43047.0,43040.0,0.36344226]
[1642249261563,0.25763935,43047.0,43040.0,0.058063]
[1642249261762,0.25763935,43047.0,43040.0,0.013363]
[1642249262166,0.3294928,43045.0,43040.0,0.013363]
[1642249263065,0.3294928,43045.0,43034.0,0.116149]
[1642249263066,0.33608128,43036.0,43034.0,0.116149]
[1642249263265,0.00128841,43042.0,43035.0,0.80464]
[1642249263465,0.058087,43040.0,43035.0,0.80464]
[1642249263715,0.38346277,43036.0,43035.0,0.80464]
[1642249263915,3.23518259,43036.0,43035.0,0.80464]
[1642249264116,3.71131559,43036.0,43035.0,0.80464]
[1642249264316,0.058102,43032.0,43015.0,0.9531]
[1642249264519,0.00123489,43022.0,43007.0,1.10904627]
[1642249264720,0.00123489,43022.0,43008.0,0.13230352]
[1642249264916,0.28976012,43018.0,43010.0,0.69742]
[1642249265115,0.28976012,43018.0,43011.0,0.13135158]
[1642249265316,0.28976012,43018.0,43016.0,0.116198]
[1642249265517,0.28976012,43018.0,43017.0,0.6974]
[1642249265917,0.41812128,43022.0,43017.0,0.6974]
[1642249266119,0.00123489,43022.0,43019.0,0.058099]
[1642249266319,0.16736838,43030.0,43019.0,0.058099]
[1642249266519,0.00124492,43029.0,43019.0,0.058099]
[1642249266718,0.31539665,43027.0,43019.0,1.73764546]
[1642249267118,0.41539665,43027.0,43019.0,1.73764546]
[1642249267322,0.29581154,43024.0,43019.0,1.73764546]
[1642249268167,0.41539665,43027.0,43019.0,1.73764546]
[1642249268369,0.00124492,43029.0,43019.0,1.73764546]
[1642249269269,0.26207495,43027.0,43019.0,1.73764546]
[1642249270869,0.00077555,43024.0,43019.0,1.73764546]
[1642249271214,0.00077555,43024.0,43019.0,1.79573684]
[1642249271611,0.00077555,43024.0,43021.0,0.05809]
[1642249271810,0.306143,43029.0,43022.0,0.6]
[1642249272010,0.76476497,43029.0,43021.0,0.01329]
[1642249272210,0.61311715,43029.0,43021.0,0.01329]
[1642249272513,0.61311715,43029.0,43021.0,0.14792054]
[1642249272710,0.61311715,43029.0,43021.0,0.01329]
[1642249273611,0.306143,43029.0,43021.0,0.07137685]
[1642249273809,0.306143,43029.0,43025.0,0.058089]
[1642249274963,0.00124186,43034.0,43025.0,0.058089]
[1642249275364,0.97412134,43035.0,43025.0,0.058089]
[1642249275965,0.2532601,43030.0,43025.0,0.058089]
[1642249276766,0.2532601,43030.0,43025.0,0.013289]
[1642249279913,0.97412134,43035.0,43025.0,0.013289]
[1642249281015,0.27192207,43033.0,43025.0,0.013289]
[1642249281414,0.27192207,43033.0,43026.0,0.05808134]
[1642249281616,0.97412134,43035.0,43031.0,0.00127428]
[1642249281916,0.97412134,43035.0,43033.0,0.013278]
[1642249282116,0.2964,43043.0,43033.0,0.013278]
[1642249282316,0.1,43045.0,43033.0,0.013278]
[1642249282566,0.26812943,43038.0,43033.0,0.013278]
[1642249282766,0.2814581,43035.0,43033.0,0.013278]
[1642249284667,0.2814581,43035.0,43031.0,0.11742928]
[1642249284868,0.2814581,43035.0,43033.0,0.058081]
[1642249285870,0.26812943,43038.0,43033.0,0.058081]
[1642249286067,0.058077,43045.0,43033.0,0.058081]